bitfinex/quotes_SOLUSD_20241009
["timestamp","ask_amount","ask_price","bid_price","bid_amount"]
[1728473988480,23.776884,143.06,142.96,1.6493862]
[1728473989587,23.776884,143.06,142.96,0.25098]
[1728473990090,23.842909,143.06,142.96,0.25098]
[1728473993090,23.842909,143.06,142.96,1.64939238]
[1728473993290,23.842909,143.06,142.96,0.25098]
[1728473996686,23.842909,143.06,142.96,1.64946049]
[1728473998783,23.842909,143.06,142.96,0.25098]
[1728474000097,6.9925,143.01,142.97,6.9941]
[1728474000581,6.9925,143.01,142.98,1.39848704]
[1728474001399,6.9925,143.01,142.97,6.9941]
[1728474001792,6.9925,143.01,142.98,1.39849059]
[1728474003082,6.9925,143.01,142.99,1.39848596]
[1728474004597,6.9925,143.01,142.98,6.9939]
[1728474004896,6.9925,143.01,142.96,17.73728]
[1728474005095,6.9925,143.01,142.97,6.9943]
[1728474007714,6.9935,142.99,142.96,17.4863]
[1728474007997,6.9944,142.97,142.94,6.9958]
[1728474008209,6.9944,142.97,142.92,22.1509]
[1728474008210,6.995,142.96,142.92,6.9966]
[1728474008975,17.4838,142.99,142.91,6.9972]
[1728474008976,6.9954,142.95,142.91,6.9972]
[1728474009177,6.996,142.94,142.9,24.4912]
[1728474009680,6.9955,142.95,142.91,6.9973]
[1728474010008,6.9959,142.94,142.9,24.4912]
[1728474010300,15.6212,142.98,142.88,6.3133]
[1728474010301,6.9969,142.92,142.88,13.3119]
[1728474010512,6.9969,142.92,142.88,6.9986]
[1728474011593,6.9966,142.93,142.88,6.9986]
[1728474012378,6.4942,142.96,142.88,6.9986]
[1728474012694,6.9969,142.92,142.88,6.9986]
[1728474013397,6.9974,142.91,142.87,24.4966]
[1728474013573,6.9974,142.91,142.87,17.4973]
[1728474014184,6.9974,142.91,142.87,24.4966]
[1728474014797,6.9972,142.92,142.88,8.39828985]
[1728474014995,6.998,142.9,142.87,17.4973]
[1728474015297,6.9985,142.89,142.84,31.7989122]
[1728474015502,6.9988,142.88,142.84,31.7993122]
[1728474015707,6.9988,142.88,142.84,24.5021]
[1728474015883,6.9993,142.87,142.83,7.0012]
[1728474016301,6.9993,142.87,142.82,7.0017]
[1728474016677,6.9993,142.87,142.83,7.0012]
[1728474016879,6.9989,142.88,142.84,1.39986744]
[1728474017115,6.9989,142.88,142.84,8.40056744]
[1728474017311,6.9989,142.88,142.84,7.0007]
[1728474017883,6.9989,142.88,142.83,7.0011]
[1728474018213,6.9994,142.87,142.83,7.0011]
[1728474020518,6.1055,142.9,142.83,7.0011]
[1728474020711,6.999,142.88,142.83,7.0011]
[1728474021014,6.9995,142.87,142.83,7.0012]
[1728474024020,6.999,142.88,142.82,0.25098]
[1728474024322,6.9985,142.89,142.85,7.0003]
[1728474024816,6.9985,142.89,142.86,1.39978488]
[1728474025115,6.9985,142.89,142.83,17.5028]
[1728474025116,6.9985,142.89,142.84,7.0006]
[1728474025416,6.9985,142.89,142.85,1.39978489]
[1728474027210,6.9985,142.89,142.85,8.40008489]
[1728474027603,6.9985,142.89,142.85,7.0003]
[1728474028426,6.9985,142.89,142.86,1.39978498]
[1728474029013,6.9985,142.89,142.85,7.0003]
[1728474029406,6.9988,142.88,142.85,7.0003]
[1728474032125,6.9988,142.88,142.86,1.39977161]
[1728474032334,6.9985,142.89,142.86,1.39977161]
[1728474032625,13.1036,142.9,142.86,8.39937161]
[1728474032814,6.9974,142.91,142.87,6.9991]
[1728474033022,6.9974,142.91,142.88,1.39953923]
[1728474033512,22.506,142.92,142.88,8.39823923]
[1728474033712,6.9974,142.91,142.88,1.39953923]
[1728474034604,6.9983,142.89,142.85,6.9999]
[1728474034811,6.9983,142.89,142.84,17.5011]
[1728474034812,15.509,142.92,142.84,17.5011]
[1728474035002,6.9989,142.88,142.84,24.5017]
[1728474035718,15.509,142.92,142.85,7.0003]
[1728474035904,6.9985,142.89,142.85,8.40004955]
[1728474040131,6.9985,142.89,142.85,7.0003]
[1728474040519,6.9985,142.89,142.86,1.39974248]
[1728474041120,6.9975,142.91,142.87,8.39883633]
[1728474041322,15.509,142.92,142.86,17.499]
[1728474041616,6.9979,142.9,142.86,24.4986]
[1728474045741,6.9983,142.89,142.86,17.499]
[1728474046140,6.9983,142.89,142.86,24.4988]
[1728474046647,6.998,142.9,142.87,1.3996548]
[1728474047145,6.9975,142.91,142.87,8.3986548]
[1728474049241,6.3833,142.94,142.87,1.3996548]
[1728474049537,6.3833,142.94,142.88,17.4962]
[1728474049743,6.9964,142.93,142.89,8.3974917]
[1728474050718,6.3833,142.94,142.89,1.3993917]
[1728474050923,6.9969,142.92,142.89,1.3993917]
[1728474051128,6.9969,142.92,142.88,24.4949]
[1728474055321,6.9969,142.92,142.88,17.4962]
[1728474055521,6.9969,142.92,142.89,6.9983]
[1728474055838,6.9988,142.89,142.85,24.62569]
[1728474056347,6.998,142.9,142.86,6.9998]
[1728474057841,6.9984,142.89,142.85,24.5001]
[1728474059849,17.4918,142.93,142.84,70.0]
[1728474060051,33.4271,142.91,142.84,7.0006]
[1728474061153,33.4271,142.91,142.83,0.25098]
[1728474061330,33.4271,142.91,142.83,7.25218]
[1728474061331,6.9997,142.87,142.83,7.25218]
[1728474062753,6.9982,142.9,142.86,6.9998]
[1728474063051,15.9334,142.91,142.84,24.14127511]
[1728474063052,6.9984,142.89,142.87,1.39968996]
[1728474063230,6.9984,142.89,142.85,8.3998077]
[1728474063638,6.998,142.9,142.86,6.9998]
[1728474063853,6.998,142.9,142.87,1.39960062]
[1728474069456,6.998,142.9,142.86,24.4994]
[1728474070262,6.998,142.9,142.87,8.39874386]
[1728474071261,40.3743,142.94,142.87,1.39954386]
[1728474071564,6.997,142.92,142.88,6.9988]
[1728474071742,6.997,142.92,142.89,1.39942918]
[1728474072462,40.3743,142.94,142.89,1.39942918]
[1728474072463,6.9974,142.91,142.89,1.39942918]
[1728474072642,6.9974,142.91,142.88,6.9988]
[1728474073752,6.9974,142.91,142.89,1.39946869]
[1728474075133,6.9974,142.91,142.88,1.39945243]
[1728474075339,6.9972,142.92,142.88,6.9985]
[1728474076248,6.9972,142.92,142.89,1.39933954]
[1728474076761,6.9972,142.92,142.88,24.4956]
[1728474079162,40.3743,142.94,142.88,24.4956]
[1728474079351,6.9974,142.91,142.89,1.39946608]
[1728474080360,22.8834,142.94,142.89,1.39946608]
[1728474080560,6.9968,142.93,142.89,8.39746608]
[1728474082759,17.4871,142.97,142.89,1.39946608]
[1728474082963,6.996,142.94,142.9,6.9976]
[1728474083272,6.996,142.94,142.91,1.39919367]
[1728474085865,17.4871,142.97,142.91,1.39919367]
[1728474086065,21.8291,142.98,142.91,18.89259367]
[1728474086260,21.8291,142.98,142.92,6.9966]
[1728474086464,39.3141,142.98,142.91,17.4934]
[1728474087370,6.9957,142.95,142.91,24.4906]
[1728474089764,6.996,142.94,142.91,24.4906]
[1728474096844,6.996,142.94,142.91,25.88970666]
[1728474097772,6.9956,142.95,142.91,25.88970666]
[1728474099670,39.3141,142.98,142.91,18.89250666]
[1728474100072,6.9955,142.95,142.91,25.88980666]
[1728474100379,6.9955,142.95,142.91,24.4907]
[1728474100866,6.9959,142.94,142.91,24.4907]
[1728474109175,6.9959,142.94,142.89,70.0]
[1728474109176,6.9967,142.93,142.89,70.0]
[1728474109482,6.9969,142.92,142.89,7.24918]
[1728474110467,17.4873,142.97,142.9,18.89366495]
[1728474110657,17.4873,142.97,142.91,6.997]
[1728474110856,17.4873,142.97,142.92,1.39915123]
[1728474111483,6.996,142.94,142.92,1.39915123]
[1728474112784,6.9965,142.93,142.89,77.24898]
[1728474113378,6.9965,142.93,142.89,70.25098]
[1728474113586,6.996,142.94,142.9,8.39687778]
[1728474113770,6.996,142.94,142.9,25.89147778]
[1728474114974,6.996,142.94,142.9,24.4923]
[1728474115359,6.996,142.94,142.91,1.39916166]
[1728474116062,6.996,142.94,142.9,24.4923]
[1728474117578,6.996,142.94,142.91,1.39916345]
[1728474117983,6.9952,142.96,142.92,24.4888]
[1728474118179,6.9952,142.96,142.93,8.39527225]
[1728474118483,6.9952,142.96,142.93,1.39897225]
[1728474118682,6.9952,142.96,142.92,24.4889]
[1728474119192,6.9952,142.96,142.93,1.398981]
[1728474120068,6.9952,142.96,142.92,24.4889]
[1728474121373,6.9955,142.95,142.92,17.4922]
[1728474122893,6.9955,142.95,142.93,5.23225768]
[1728474123091,6.9955,142.95,142.92,17.4922]
[1728474125503,21.8291,142.98,142.89,70.25098]
[1728474125798,6.996,142.94,142.9,6.9977]
[1728474128569,21.8291,142.98,142.93,0.25098]
[1728474128876,6.9945,142.97,142.93,24.73788]
[1728474129071,6.9945,142.97,142.93,17.74168]
[1728474129279,28.8233,142.98,142.94,6.9959]
[1728474129497,22.7005,142.98,142.95,1.39879796]
[1728474129677,22.7005,142.98,142.94,6.9959]
[1728474130203,6.9945,142.97,142.93,17.74168]
[1728474130382,6.995,142.96,142.93,24.4869]
[1728474131908,15.7063,142.98,142.94,1.39893815]
[1728474132070,6.9945,142.97,142.94,8.39473815]
[1728474132696,22.7004,142.98,142.94,1.39893815]
[1728474132876,22.7004,142.98,142.94,6.9956]
[1728474137593,22.7004,142.98,142.95,1.3987954]
[1728474138217,22.7004,142.98,142.94,6.9956]
[1728474139693,22.7004,142.98,142.95,1.39879611]
[1728474139892,22.7004,142.98,142.94,6.9956]
[1728474143605,22.7004,142.98,142.94,8.39439618]
[1728474143910,22.7004,142.98,142.94,6.9956]
[1728474145507,15.7063,142.98,142.93,17.4907]
[1728474145804,15.7063,142.98,142.92,6.9968]
[1728474145993,6.9951,142.96,142.92,6.9968]
[1728474147505,6.9951,142.96,142.9,138.2534]
[1728474147506,33.1914,142.98,142.91,7.24818]
[1728474147717,6.9956,142.95,142.91,7.24818]
[1728474148714,6.9956,142.95,142.92,6.9968]
[1728474151417,6.9952,142.96,142.92,6.9968]
[1728474155223,6.9957,142.95,142.91,7.24788]
[1728474155602,6.071,142.97,142.9,24.4911]
[1728474155802,23.5583,142.97,142.91,1.39926922]
[1728474156018,6.996,142.94,142.91,8.39666922]
[1728474156301,6.996,142.94,142.91,6.9974]
[1728474156811,6.996,142.94,142.89,17.4959]
[1728474156999,6.996,142.94,142.9,6.9977]
[1728474158440,6.996,142.94,142.91,1.39920692]
[1728474159116,6.996,142.94,142.9,6.9977]
[1728474162329,6.9953,142.96,142.92,6.9965]
[1728474162541,6.9953,142.96,142.93,1.39909711]
[1728474163422,6.9955,142.95,142.93,1.39909711]
[1728474163620,6.9955,142.95,142.92,6.9965]
[1728474166009,6.9955,142.95,142.93,1.399077]
[1728474166213,6.9955,142.95,142.92,6.9967]
[1728474168407,6.995,142.96,142.93,1.39907801]
[1728474168808,6.995,142.96,142.92,6.9967]
[1728474170023,6.995,142.96,142.93,1.39907164]
[1728474171033,6.071,142.97,142.93,8.39537164]
[1728474171246,22.7004,142.98,142.94,6.9958]
[1728474171417,22.7004,142.98,142.95,1.39885548]
[1728474174127,6.9941,142.98,142.95,1.39885548]
[1728474174332,6.9936,142.99,142.96,1.39879248]
[1728474175230,22.6337,143.01,142.96,1.39879248]
[1728474175533,6.994,142.98,142.94,6.9957]
[1728474183123,6.994,142.98,142.95,5.22495102]
[1728474183324,6.994,142.98,142.96,5.22495102]
[1728474183919,6.994,142.98,142.94,6.9957]
[1728474184135,6.994,142.98,142.95,5.22510844]
[1728474184335,6.994,142.98,142.94,6.9957]
[1728474185335,6.9948,142.97,142.93,24.4871]
[1728474185520,6.9946,142.97,142.93,24.4871]
[1728474186710,6.9946,142.97,142.94,1.3988941]
[1728474190943,6.9946,142.97,142.93,24.4871]
[1728474192021,6.9946,142.97,142.94,1.39889454]
[1728474192931,6.9941,142.98,142.94,8.39479454]
[1728474193519,6.9936,142.99,142.95,6.9953]
[1728474193732,6.9936,142.99,142.96,1.39875907]
[1728474195535,6.994,142.98,142.96,1.39875907]
[1728474196324,6.994,142.98,142.94,7.24668]
[1728474201050,40.1151,143.01,142.96,0.25098]
[1728474201051,6.9931,143.0,142.96,0.25098]
[1728474201237,23.2293,143.01,142.97,6.9944]
[1728474201438,23.2293,143.01,142.98,1.39855123]
[1728474202527,6.993,143.0,142.98,1.39855123]
[1728474202830,6.993,143.0,142.96,0.25098]
[1728474202831,6.993,143.0,142.96,7.24568]
[1728474204232,6.993,143.0,142.96,8.64425455]
[1728474206025,16.2367,143.01,142.97,70.0]
[1728474206230,7.058425,143.02,142.98,8.3922683]
[1728474207147,6.9925,143.01,142.97,94.4802]
[1728474209037,6.9925,143.01,142.98,1.39848533]
[1728474212747,6.9925,143.01,142.97,94.4802]
[1728474216261,6.9925,143.01,142.97,94.4802]
[1728474217449,6.9925,143.01,142.98,6.9939]
[1728474217664,7.058025,143.02,142.99,6.9934]
[1728474217959,7.058025,143.02,143.0,1.39840662]
[1728474220758,7.058025,143.02,142.98,8.39200766]
[1728474221347,7.058025,143.02,142.98,6.9936]
[1728474226256,0.066025,143.02,142.99,8.39151065]
[1728474227158,0.066025,143.02,143.01,6.9925]
[1728474227461,0.066025,143.02,143.01,8.39063391]
[1728474228377,0.066025,143.02,143.01,6.9925]
[1728474231469,0.066025,143.02,143.0,17.4822]
[1728474233259,0.066025,143.02,143.01,1.39827065]
[1728474233469,0.066025,143.02,143.01,1.39817015]
[1728474234570,0.066025,143.02,143.01,6.9925]
[1728474235969,0.066025,143.02,143.0,24.475]
[1728474238973,0.066025,143.02,143.01,1.39818251]
[1728474239171,0.066025,143.02,143.0,24.475]
[1728474239363,0.066025,143.02,143.01,1.39818601]
[1728474239551,0.066025,143.02,143.01,6.9925]
[1728474240355,0.066025,143.02,143.01,8.39068294]
[1728474240764,0.066025,143.02,143.01,7.24348]
[1728474244476,0.066025,143.02,143.01,13.85541766]
[1728474245177,0.066025,143.02,143.01,83.85541766]
[1728474246277,0.066025,143.02,143.01,107.63230166]
[1728474247270,0.066025,143.02,143.01,106.23418553]
[1728474250383,0.066025,143.02,143.01,82.45730153]
[1728474254984,0.066025,143.02,143.01,12.45730153]
[1728474259690,0.066025,143.02,143.01,7.24348]
[1728474260074,0.066025,143.02,143.01,12.45096836]
[1728474269406,0.066025,143.02,143.01,7.24348]
[1728474275215,0.066025,143.02,143.01,101.020364]
[1728474276724,0.066025,143.02,143.01,77.24348]
[1728474282796,0.066025,143.02,143.01,78.64160022]
[1728474287402,0.066025,143.02,143.01,77.24348]
[1728474288118,0.066025,143.02,143.01,7.24348]
[1728474289402,0.066025,143.02,143.01,77.24348]
[1728474291433,0.066025,143.02,143.01,78.64156628]
[1728474291621,0.066025,143.02,143.01,77.24348]
[1728474292631,0.066025,143.02,143.01,78.6415685]
[1728474293129,0.066025,143.02,143.01,77.24348]
[1728474294228,0.066025,143.02,143.01,78.64156658]
[1728474294432,0.066025,143.02,143.01,77.24348]
[1728474299831,0.066025,143.02,143.01,78.6415698]
[1728474300029,0.066025,143.02,143.01,77.24348]
[1728474300327,0.066025,143.02,143.01,78.64156548]
[1728474301106,0.066025,143.02,143.01,102.41844948]
[1728474306846,0.066025,143.02,143.01,101.020364]
[1728474321044,0.066025,143.02,143.01,106.24051358]
[1728474323742,0.066025,143.02,143.01,101.020364]
[1728474323971,0.066025,143.02,143.01,106.2413705]
[1728474324145,0.066025,143.02,143.01,99.2488705]
[1728474324532,0.066025,143.02,143.01,106.2413705]
[1728474327356,0.066025,143.02,143.01,106.24217057]
[1728474327730,0.066025,143.02,143.01,101.020364]
[1728474329657,0.066025,143.02,143.01,124.55185407]
[1728474329854,21.9166,143.09,143.05,7.24148]
[1728474329855,28.9054,143.09,143.05,7.24148]
[1728474330147,28.9054,143.09,143.06,1.39773138]
[1728474331345,28.9054,143.09,143.05,7.24148]
[1728474331555,28.9054,143.09,143.06,1.39773288]
[1728474331950,28.9054,143.09,143.05,7.24148]
[1728474332149,6.9892,143.08,143.05,0.25098]
[1728474340664,21.9166,143.09,143.04,24.4681]
[1728474340963,6.9896,143.07,143.04,24.4681]
[1728474342751,6.9896,143.07,143.04,94.4681]
[1728474343764,6.9896,143.07,143.04,24.4681]
[1728474343965,6.9903,143.06,143.03,0.25098]
[1728474344282,6.9911,143.04,143.02,70.0]
[1728474349265,21.9166,143.09,143.0,17.60789]
[1728474349476,6.992,143.02,142.97,87.485]
[1728474349662,6.992,143.02,142.98,6.9936]
[1728474350672,6.992,143.02,142.99,0.25098]
[1728474351791,6.992,143.02,142.98,6.9936]
[1728474352379,6.992,143.02,142.99,1.39839473]
[1728474352755,6.992,143.02,142.98,6.9936]
[1728474353164,6.993,143.0,142.97,17.485]
[1728474353371,6.1022,143.03,142.96,6.9947]
[1728474353372,6.9935,142.99,142.96,6.9947]
[1728474353564,6.9935,142.99,142.95,76.9952]
[1728474354975,6.9935,142.99,142.95,6.9952]
[1728474355177,6.994,142.98,142.95,6.9952]
[1728474355956,6.9936,142.99,142.95,6.9952]
[1728474356259,6.9936,142.99,142.95,76.9952]
[1728474357752,6.9936,142.99,142.96,1.39868247]
[1728474358191,6.9936,142.99,142.95,76.9952]
[1728474359090,22.4441,143.0,142.97,6.9944]
[1728474359283,15.4511,143.0,142.98,1.3986044]
[1728474361564,6.992,143.02,142.99,6.9933]
[1728474361874,6.992,143.02,142.98,24.4783]
[1728474366388,6.992,143.02,142.99,1.39841522]
[1728474366567,6.992,143.02,142.98,24.4783]
[1728474369689,6.992,143.02,142.99,1.39841564]
[1728474369870,6.992,143.02,142.98,24.4783]
[1728474373011,6.992,143.02,142.99,1.39841837]
[1728474373469,6.992,143.02,142.99,8.39181837]
[1728474375786,16.4707,143.04,142.99,71.39841837]
[1728474375991,23.462,143.04,143.0,6.9928]
[1728474376190,23.462,143.04,143.01,1.39825415]
[1728474378073,23.462,143.04,143.0,6.9928]
[1728474378403,6.0836,143.07,143.03,6.9915]
[1728474378575,6.9901,143.06,143.03,1.39808832]
[1728474378775,13.0733,143.07,143.03,8.38948832]
[1728474379978,6.9901,143.06,143.03,8.38948832]
[1728474380180,6.9896,143.07,143.04,6.991]
[1728474380384,6.9896,143.07,143.05,1.3978931]
[1728474381201,6.9896,143.07,143.04,0.25098]
[1728474381582,6.9896,143.07,143.04,7.24198]
[1728474388189,6.9896,143.07,143.04,0.25098]
[1728474389210,6.9896,143.07,143.04,5.20019231]
[1728474389903,6.9896,143.07,143.03,6.9913]
[1728474391530,6.9896,143.07,143.03,76.9913]
[1728474394212,6.9893,143.08,143.04,1.64887946]
[1728474395102,6.9893,143.08,143.04,8.63967946]
[1728474396390,6.9887,143.09,143.05,6.9904]
[1728474396593,6.9887,143.09,143.06,1.39775257]
[1728474397497,16.4761,143.12,143.06,8.38775257]
[1728474397701,6.9882,143.1,143.06,8.38775257]
[1728474398512,16.4761,143.12,143.06,1.39775257]
[1728474398721,6.9886,143.09,143.06,1.39775257]
[1728474399901,6.9882,143.1,143.06,8.38745257]
[1728474400492,6.9876,143.11,143.07,77.24048]
[1728474400693,6.9876,143.11,143.08,1.39752272]
[1728474401497,16.4761,143.12,143.08,1.39752272]
[1728474401699,6.9873,143.12,143.09,0.12549]
[1728474401901,6.9873,143.12,143.1,1.39737705]
[1728474402217,6.9873,143.12,143.08,0.12549]
[1728474402516,6.5381,143.13,143.08,0.25098]
[1728474402720,13.5251,143.13,143.09,24.4594]
[1728474403015,6.987,143.13,143.1,1.39738853]
[1728474404223,6.987,143.13,143.1,0.25098]
[1728474404521,6.987,143.13,143.09,87.471]
[1728474404815,6.987,143.13,143.1,1.3973292]
[1728474406729,6.987,143.13,143.1,0.12549]
[1728474406928,6.987,143.13,143.1,0.25098]
[1728474407807,6.9862,143.14,143.11,70.0]
[1728474409327,6.9869,143.13,143.1,0.25098]
[1728474410722,6.9876,143.11,143.07,76.9892]
[1728474411295,6.9873,143.12,143.08,8.38646404]
[1728474411499,6.9873,143.12,143.08,6.989]
[1728474411921,6.9873,143.12,143.09,0.25098]
[1728474412104,6.9879,143.11,143.08,24.027864]
[1728474412728,6.9867,143.13,143.1,0.25098]
[1728474412905,6.9867,143.13,143.11,1.39729627]
[1728474413104,6.9867,143.13,143.1,0.25098]
[1728474416933,6.9871,143.12,143.09,0.25098]
[1728474418820,34.1669075,143.16,143.09,70.25098]
[1728474419125,6.9871,143.12,143.09,70.25098]
[1728474420233,34.1669075,143.16,143.09,70.25098]
[1728474420408,6.9868,143.13,143.09,77.23948]
[1728474420809,6.9868,143.13,143.1,1.39726879]
[1728474421930,6.9868,143.13,143.11,0.25098]
[1728474422134,6.9868,143.13,143.12,1.39720325]
[1728474422339,6.9868,143.13,143.11,0.12549]
[1728474422852,6.9868,143.13,143.11,0.25098]
[1728474423422,16.7039075,143.16,143.11,71.64818904]
[1728474424427,6.9858,143.15,143.11,78.63548904]
[1728474426122,23.6892075,143.16,143.13,70.0]
[1728474427134,16.7039075,143.16,143.13,70.0]
[1728474427307,6.9861,143.14,143.13,70.0]
[1728474427829,0.8403075,143.16,143.13,70.0]
[1728474428146,0.8403075,143.16,143.14,1.39693298]
[1728474429337,0.8403075,143.16,143.15,1.39688298]
[1728474429632,0.8403075,143.16,143.14,7.23658]
[1728474430233,0.8403075,143.16,143.14,0.12549]
[1728474430417,7.8256075,143.16,143.14,0.12549]
[1728474431731,0.8403075,143.16,143.14,8.50853699]
[1728474433030,0.8403075,143.16,143.14,1.52243699]
[1728474434030,0.8403075,143.16,143.15,0.12549]
[1728474439244,0.8403075,143.16,143.14,0.12549]
[1728474439622,7.8255075,143.16,143.14,0.12549]
[1728474439945,0.8403075,143.16,143.14,0.12549]
[1728474441039,7.8255075,143.16,143.14,0.12549]
[1728474441339,0.8403075,143.16,143.14,0.12549]
[1728474441722,0.8403075,143.16,143.14,18.98769194]
[1728474441925,0.8403075,143.16,143.14,24.57669]
[1728474442235,0.8403075,143.16,143.14,25.97358058]
[1728474442435,0.8403075,143.16,143.14,24.57669]
[1728474442639,0.8403075,143.16,143.14,17.59079]
[1728474445140,0.8403075,143.16,143.14,24.57679]
[1728474447944,7.8255075,143.16,143.14,0.25098]
[1728474448244,0.8403075,143.16,143.14,0.25098]
[1728474449649,0.8403075,143.16,143.11,87.4683]
[1728474449850,7.8259075,143.16,143.13,0.12549]
[1728474454648,7.8259075,143.16,143.14,5.20905477]
[1728474455654,7.8259075,143.16,143.13,0.12549]
[1728474456332,0.8403075,143.16,143.13,8.50901749]
[1728474458941,0.8403075,143.16,143.13,7.11199]
[1728474459857,0.8403075,143.16,143.14,1.39702432]
[1728474460037,0.8403075,143.16,143.14,6.9861]
[1728474464674,0.8403075,143.16,143.14,6.9861]
[1728474465268,0.8403075,143.16,143.13,87.71728]
[1728474465561,0.8403075,143.16,143.14,6.986]
[1728474468849,0.8403075,143.16,143.13,24.70378]
[1728474478276,0.8403075,143.16,143.14,6.986]
[1728474478873,0.8403075,143.16,143.15,101.013464]
[1728474479059,0.8403075,143.16,143.15,102.41038035]
[1728474484377,0.8403075,143.16,143.15,115.57661856]
[1728474484569,0.8403075,143.16,143.15,114.17970221]
[1728474484875,0.8403075,143.16,143.15,115.5762308]
[1728474485256,0.8403075,143.16,143.15,115.57623167]
[1728474488259,0.8403075,143.16,143.15,114.17970221]
[1728474489776,22.5306,143.24,143.19,70.0]
[1728474489983,15.5492,143.24,143.21,6.9827]
[1728474490154,22.5305,143.24,143.21,6.9827]
[1728474490784,15.5492,143.24,143.21,6.9827]
[1728474492464,22.5305,143.24,143.2,7.23408]
[1728474492663,22.5305,143.24,143.2,31.010964]
[1728474493684,15.5492,143.24,143.18,6.9841]
[1728474494181,6.9824,143.22,143.18,24.4446]
[1728474496879,23.4728,143.2,143.16,24.448]
[1728474498690,23.4728,143.2,143.17,6.9846]
[1728474498987,16.4893,143.2,143.17,6.9846]
[1728474500467,16.4893,143.2,143.18,1.39667901]
[1728474501064,6.9829,143.21,143.18,7.23508]
[1728474501484,23.038,143.23,143.18,7.23508]
[1728474501688,6.9822,143.22,143.18,7.23508]
[1728474504673,6.9822,143.22,143.19,1.39645647]
[1728474505286,6.9822,143.22,143.18,7.23508]
[1728474505470,6.9822,143.22,143.19,1.39646357]
[1728474505668,23.038,143.23,143.19,8.38006357]
[1728474505869,30.02,143.23,143.19,8.38006357]
[1728474506677,23.4,143.23,143.19,8.38006357]
[1728474507190,16.418,143.23,143.2,6.9831]
[1728474507364,17.4518,143.26,143.21,1.39636806]
[1728474507365,6.9815,143.24,143.21,1.39636806]
[1728474509884,17.4518,143.26,143.19,70.0]
[1728474510087,6.9826,143.22,143.18,24.69428]
[1728474510473,17.4518,143.26,143.19,6.9835]
[1728474510770,6.9823,143.22,143.19,6.9835]
[1728474511694,17.4518,143.26,143.18,24.69428]
[1728474511899,6.9822,143.22,143.18,24.69428]
[1728474512278,6.9828,143.21,143.18,24.69428]
[1728474512592,17.4518,143.26,143.18,24.69428]
[1728474512802,6.9824,143.22,143.18,24.69428]
[1728474514992,6.2462,143.27,143.17,70.0]
[1728474515298,6.9832,143.2,143.17,76.9846]
[1728474515489,6.9829,143.21,143.17,76.9846]
[1728474515789,6.9829,143.21,143.18,5.19686316]
[1728474515977,17.4534,143.24,143.18,5.19686316]
[1728474516181,6.9834,143.2,143.18,5.19686316]
[1728474516698,6.9834,143.2,143.17,70.0]
[1728474517194,17.4534,143.24,143.15,24.4487]
[1728474517195,6.9837,143.19,143.15,24.4487]
[1728474517378,6.9842,143.18,143.15,17.4632]
[1728474518196,6.9842,143.18,143.15,24.4488]
[1728474518404,40.3885,143.22,143.15,24.4488]
[1728474519396,6.9842,143.18,143.15,24.4488]
[1728474519602,40.3885,143.22,143.15,24.4488]
[1728474519779,6.984,143.19,143.15,24.4488]
[1728474519975,40.3885,143.22,143.16,1.39682976]
[1728474520298,6.9833,143.2,143.16,8.38192976]
[1728474520489,6.9833,143.2,143.16,6.9851]
[1728474523979,6.9833,143.2,143.17,1.39669033]
[1728474524176,6.9833,143.2,143.16,6.9851]
[1728474525208,22.9326,143.22,143.15,87.4632]
[1728474525401,6.9838,143.19,143.15,94.4486]
[1728474527886,6.9838,143.19,143.16,8.38189084]
[1728474529088,6.9828,143.21,143.17,6.9844]
[1728474529294,6.9828,143.21,143.18,8.38071992]